[Event "45th FIDE Olympiad 2024"]
[Site "Budapest"]
[Date "2024.09.19"]
[Round "8.30"]
[White "Martinovic, Sasa"]
[Black "Kollars, Dmitrij"]
[Result "1/2-1/2"]
[ECO "D37"]
[WhiteElo "2563"]
[BlackElo "2659"]
[Annotator "RC"]
[PlyCount "198"]
[EventDate "2024.09.05"]
[EventType "team-tourn"]
[EventCountry "HUN"]
[SourceTitle "playchess.com"]
[Source "ChessBase"]
[SourceQuality "1"]
[WhiteTeam "Croatia"]
[BlackTeam "Germany"]
[WhiteTeamCountry "CRO"]
[BlackTeamCountry "GER"]
[TimeControl "40/5400+30:1800+30"]

1. d4 {[%emt 0:00:01]} Nf6 {[%emt 0:00:09]} 2. c4 {[%emt 0:00:05]} e6 {[%emt 0:00:10]} 3. Nf3 {[%emt 0:00:05]} d5 {[%emt 0:00:18]} 4. Nc3 {[%emt 0:00:06]} Be7 {[%emt 0:00:28]} 5. Bf4 {[%emt 0:00:15]} c5 {[%emt 0:00:46]} 6. dxc5 {[%emt 0:00:45]} Bxc5 {[%emt 0:00:10]} 7. e3 {[%emt 0:01:36]} Nc6 {[%emt 0:00:19]} 8. Qc2 {[%emt 0:03:12]} Nb4 {[%emt 0:00:36]} 9. Qb1 {[%emt 0:01:27]} O-O {[%emt 0:02:49]} 10. a3 {[%emt 0:06:27]} Nc6 {[%emt 0:00:38]} 11. Qc2 {[%emt 0:04:20]} Re8 {[%emt 0:00:34]} 12. Bg5 {[%emt 0:00:04]} Be7 {[%emt 0:02:39]} 13. Rd1 {[%emt 0:05:09]} Qa5 {[%emt 0:06:35]} 14. Be2 {[%emt 0:02:54]} h6 {[%emt 0:11:45]} 15. Bh4 {[%emt 0:01:54]} Ne4 {[%emt 0:01:26]} 16. Bxe7 {[%emt 0:00:09]} Nxe7 {[%emt 0:02:08]} 17. Rc1 {[%emt 0:01:55]} Bd7 {[%emt 0:04:32]} 18. Ne5 {[%emt 0:04:58]} Red8 {[%emt 0:02:34]} 19. Nxd7 {[%emt 0:15:10]} Rxd7 {[%emt 0:00:18]} 20. cxd5 {[%emt 0:00:19]} Nxc3 {[%emt 0:07:18]} 21. Qxc3 {[%emt 0:02:20]} Qxd5 {[%emt 0:05:25]} 22. O-O {[%emt 0:13:14]} Rc8 {[%emt 0:01:11]} 23. Qe1 {[%emt 0:01:21]} Rdc7 {[%emt 0:08:59]} 24. Rxc7 {[%emt 0:00:54]} Rxc7 {[%emt 0:00:03]} 25. Bf3 {[%emt 0:01:18]} Qe5 {[%emt 0:05:47]} 26. Qd2 {[%emt 0:00:56]} g6 {[%emt 0:02:20]} 27. Rd1 {[%emt 0:02:34]} Kg7 {[%emt 0:01:10]} 28. g3 {[%emt 0:01:07]} Qf5 {[%emt 0:08:46]} 29. Kg2 {[%emt 0:03:10]} Rc2 {[%emt 0:01:36]} 30. Qb4 {[%emt 0:11:32]} Nc6 {[%emt 0:04:15]} 31. Qxb7 {[%emt 0:04:01]} Ne5 {[%emt 0:00:15]} 32. Rd4 {[%emt 0:05:46]} g5 {[%emt 0:04:39]} 33. h3 {[%emt 0:02:07]} h5 {[%emt 0:01:53]} 34. Qe4 {[%emt 0:00:55]} Qxe4 {[%emt 0:02:12]} 35. Rxe4 {[%emt 0:01:51]} Nd3 {[%emt 0:00:35]} 36. Bxh5 {[%emt 0:00:23]} Nxf2 {[%emt 0:06:32]} 37. Ra4 {[%emt 0:00:13]} Ne4+ {[%emt 0:02:06]} 38. Kg1 {[%emt 0:00:04]} Rc1+ {[%emt 0:01:03]} 39. Kg2 {[%emt 0:00:11]} Rc2+ {[%emt 0:00:04]} 40. Kg1 {[%emt 0:00:03]} Nxg3 {[%emt 0:02:48]} 41. Bf3 {[%emt 0:31:26]} Rxb2 {[%emt 0:31:02]} 42. Rxa7 {[%emt 0:01:00]} Ra2 {[%emt 0:00:00]} 43. a4 {[%emt 0:00:00]} Kf6 {[%emt 0:00:00]} 44. a5 {[%emt 0:00:00]} Ke5 {[%emt 0:00:00]} 45. Rxf7 {[%emt 0:00:00]} Nf5 {[%emt 0:00:00]} 46. Bg4 {[%emt 0:00:00]} Nxe3 {[%emt 0:00:00]} 47. Rg7 {[%emt 0:00:00]} Kf6 {[%emt 0:00:00]} 48. Ra7 {[%emt 0:00:00]} Nxg4 {[%emt 0:00:00]} 49. hxg4 {[%emt 0:00:00]} Ke5 {[%emt 0:00:00]} 50. Rf7 {[%emt 0:02:12]} Rxa5 {[%emt 0:00:00]} 51. Kg2 {[%emt 0:00:14]} Rd5 {[%emt 0:00:00]} 52. Kg3 {[%emt 0:00:38]} Rd3+ {[%emt 0:00:00]} 53. Kg2 {[%emt 0:00:13]} Re3 {[%emt 0:00:00]} 54. Kf2 {[%emt 0:00:29]} Rc3 {[%emt 0:00:00]} 55. Kg2 {[%emt 0:00:12]} Rc5 {[%emt 0:00:00]} 56. Kf3 {[%emt 0:00:32]} Kd4 {[%emt 0:00:00]} 57. Rd7+ {[%emt 0:01:04]} Rd5 {[%emt 0:00:00]} 58. Ra7 {[%emt 0:00:42]} Rb5 {[%emt 0:00:00]} 59. Rd7+ {[%emt 0:00:17]} Ke5 {[%emt 0:00:00]} 60. Rf7 {[%emt 0:00:25]} Rd5 {[%emt 0:00:12]} 61. Rf8 {[%emt 0:01:21]} Rc5 {[%emt 0:00:44]} 62. Rf7 {[%emt 0:00:18]} Rc1 {[%emt 0:01:06]} 63. Kf2 {[%emt 0:01:29]} Rd1 {[%emt 0:00:13]} 64. Rf8 {[%emt 0:00:23]} Rd3 {[%emt 0:01:47]} 65. Rf7 {[%emt 0:00:23]} Rc3 {[%emt 0:01:00]} 66. Rf8 {[%emt 0:00:10]} Kd4 {[%emt 0:01:34]} 67. Rf6 {[%emt 0:01:23]} Re3 {[%emt 0:00:04]} 68. Rg6 {[%emt 0:00:34]} Re5 {[%emt 0:00:02]} 69. Kf3 {[%emt 0:00:25]} Kd3 {[%emt 0:00:20]} 70. Rg8 {[%emt 0:00:35]} Rd5 {[%emt 0:00:17]} 71. Ra8 {[%emt 0:00:24]} Kd4 {[%emt 0:00:09]} 72. Ra4+ {[%emt 0:02:27]} Ke5 {[%emt 0:00:01]} 73. Ke3 {[%emt 0:00:40]} Rb5 {[%emt 0:00:21]} 74. Re4+ {[%emt 0:00:08]} Kf6 {[%emt 0:00:07]} 75. Kf3 {[%emt 0:00:33]} Rb3+ {[%emt 0:00:47]} 76. Kf2 {[%emt 0:00:01]} Rc3 {[%emt 0:00:49]} 77. Kg2 {[%emt 0:00:11]} Rd3 {[%emt 0:01:53]} 78. Kf2 {[%emt 0:00:11]} Ke7 {[%emt 0:00:29]} 79. Ra4 {[%emt 0:00:39]} Kd6 {[%emt 0:00:15]} 80. Ra8 {[%emt 0:00:35]} Rd4 {[%emt 0:00:28]} 81. Kg3 {[%emt 0:00:26]} Ke7 {[%emt 0:00:37]} 82. Kf3 {[%emt 0:00:28]} Kf7 {[%emt 0:00:19]} 83. Rb8 {[%emt 0:00:10]} Rd3+ {[%emt 0:00:24]} 84. Kf2 {[%emt 0:00:20]} Ke7 {[%emt 0:02:34]} 85. Rg8 {[%emt 0:00:24]} Rd5 {[%emt 0:00:28]} 86. Kf3 {[%emt 0:00:24]} Rc5 {[%emt 0:00:19]} 87. Ke3 {[%emt 0:01:00]} Kf7 {[%emt 0:00:19]} 88. Ra8 {[%emt 0:00:14]} Kf6 {[%emt 0:00:54]} 89. Rf8+ {[%emt 0:00:18]} Ke5 {[%emt 0:00:53]} 90. Kf3 {[%emt 0:00:19]} Rc3+ {[%emt 0:00:27]} 91. Kf2 {[%emt 0:00:18]} Kd4 {[%emt 0:01:37]} 92. Rg8 {[%emt 0:01:20]} Rc5 {[%emt 0:00:30]} 93. Rg6 {[%emt 0:00:16]} Re5 {[%emt 0:00:10]} 94. Kf3 {[%emt 0:00:42]} Kd3 {[%emt 0:00:18]} 95. Rg8 {[%emt 0:00:22]} Rd5 {[%emt 0:00:08]} 96. Ra8 {[%emt 0:00:28]} Rc5 {[%emt 0:02:09]} 97. Rd8+ {[%emt 0:00:10]} Rd5 {[%emt 0:00:48]} 98. Ra8 {[%emt 0:00:04]} Rc5 {[%emt 0:00:24]} 99. Rd8+ {[%emt 0:00:04]} Rd5 {[%emt 0:00:03]} 1/2-1/2

[Event "45th FIDE Olympiad 2024"]
[Site "Budapest"]
[Date "2024.09.19"]
[Round "8.30"]
[White "Lynch, Kemp"]
[Black "Kyaw, Zay Ya"]
[Result "0-1"]
[WhiteElo "1944"]
[BlackElo "1818"]
[PlyCount "56"]
[EventDate "2024.09.05"]
[EventType "team-tourn"]
[EventCountry "HUN"]
[WhiteTeam "Barbados"]
[BlackTeam "Myanmar"]
[WhiteTeamCountry "BAR"]
[BlackTeamCountry "MYA"]
[TimeControl "40/5400+30:1800+30"]

1. d4 d5 2. c4 c6 3. Nf3 Nf6 4. g3 Bf5 5. Nc3 e6 6. Bg2 Nbd7 7. O-O Bd6 8. Nd2 O-O 9. e4 dxe4 10. Ndxe4 Nxe4 11. Nxe4 Be7 12. Be3 Nf6 13. Nc3 Qd7 14. h3 Rad8 15. Rc1 b5 16. cxb5 cxb5 17. a3 a5 18. Ne2 Nd5 19. Nf4 Nxf4 20. Bc6 Nxh3+ 21. Kg2 Qd6 22. g4 Nf4+ 23. Kf3 Nd3 24. gxf5 Nxc1 25. Be4 exf5 26. Bxf5 Qf6 27. Qc2 Rd5 28. Kg4 h5+ {0-} 0-1

[Event "45th FIDE Olympiad 2024"]
[Site "Budapest"]
[Date "2024.09.19"]
[Round "8.31"]
[White "Bluebaum, Matthias"]
[Black "Livaic, Leon"]
[Result "1-0"]
[ECO "E92"]
[WhiteElo "2640"]
[BlackElo "2550"]
[Annotator "TA"]
[PlyCount "59"]
[EventDate "2024.09.05"]
[EventType "team-tourn"]
[EventCountry "HUN"]
[SourceTitle "playchess.com"]
[Source "ChessBase"]
[SourceQuality "1"]
[WhiteTeam "Germany"]
[BlackTeam "Croatia"]
[WhiteTeamCountry "GER"]
[BlackTeamCountry "CRO"]
[TimeControl "40/5400+30:1800+30"]

{[%evp 23,59,72,77,70,87,66,84,60,56,28,77,52,62,64,110,91,151,145,192,200,180,159,167,162,198,181,189,112,490,502,510,490,747,725,1885,1985,1911,1757]} 1. c4 {[%emt 0:00:03]} Nf6 {[%emt 0:00:11]} 2. Nc3 {[%emt 0:00:07]} g6 {[%emt 0:00:05]} 3. e4 {[%emt 0:00:04]} d6 {[%emt 0:00:06]} 4. d4 {[%emt 0:00:03]} Bg7 {[%emt 0:00:06]} 5. h3 {[%emt 0:00:04]} O-O {[%emt 0:00:54]} 6. Be3 {[%emt 0:00:08]} e5 {[%emt 0:02:27]} 7. d5 {[%emt 0:00:12]} Na6 {[%emt 0:00:10]} 8. Be2 {[%emt 0:00:43]} Nc5 {[%emt 0:01:50]} 9. Qc2 {[%emt 0:00:15]} a5 {[%emt 0:09:57]} 10. Nf3 {[%emt 0:00:19]} Qe7 {[%emt 0:05:13]} 11. g4 {[%emt 0:06:42][%cal Bg2g4,Bg4g5][%mdl 32]} c6 {[%emt 0:02:06]} 12. Nd2 {[%emt 0:03:28]} Bd7 {[%emt 0:01:56]} 13. g5 {[%emt 0:03:45]} Ne8 {[%emt 0:04:46][%cal Bf6e8,Be8c7,Bc7a6,Ba6c5][%mdl 32]} 14. h4 {[%emt 0:01:02][%cal Bh3h4,Bh4h5][%mdl 32]} Nc7 {[%emt 0:01:29]} 15. f3 {[%emt 0:12:01] White is better.} a4 {[%emt 0:07:08]} 16. h5 {[%emt 0:09:54]} Rfc8 {[%emt 0:04:12]} (16... cxd5 $11 {is more appropriate.} 17. exd5 e4 18. Ndxe4 (18. Ncxe4 Bf5 $14) 18... Nxe4 19. Nxe4 (19. Qxe4 Rfe8 $11) 19... a3) 17. Kf2 {[%emt 0:03:54]} cxd5 {[%emt 0:04:50]} 18. exd5 {[%emt 0:01:37]} N7a6 $1 {[%emt 0:05:35][%cal Oa4a3]} 19. Nde4 {[%emt 0:03:10]} Bf5 {[%emt 0:06:48]} ({Better is} 19... Nxe4+ 20. Qxe4 (20. fxe4 f5 $16) (20. Nxe4 b5 $14) 20... Bf5) 20. Qd2 {[%emt 0:01:55] White is more active.} (20. Nxa4 Nb4 21. Qd1 Nxe4+ (21... Nxa4 22. Qb3 $17) 22. fxe4 Bxe4 $17) 20... Nxe4+ {[%emt 0:03:45]} (20... gxh5 $16 21. Ng3 (21. Rxh5 Bg6 $16) 21... Bg6) 21. fxe4 $18 {[%emt 0:03:17] [#] Black must now prevent h6.} Bd7 {[%emt 0:00:06]} 22. Rag1 {[%emt 0:05:17]} Nc5 {[%emt 0:00:52]} 23. Rh2 {[%emt 0:01:38]} Qd8 {[%emt 0:00:39]} 24. hxg6 {[%emt 0:01:55]} hxg6 {[%emt 0:09:41]} 25. Rgh1 {[%emt 0:00:17]} (25. Kg2 $18) 25... Qa5 $2 {[%emt 0:00:10][%mdl 8192] This costs Black the game.} (25... b5 $16 {is a better chance.}) 26. Kg2 {[%emt 0:02:12] White is clearly winning.} a3 {[%emt 0:02:59]} 27. b3 {[%emt 0:00:22]} b5 {[%emt 0:02:59]} (27... Rf8 $142 28. Rh4 Qb4) 28. Qe1 {[%emt 0:04:17] And now Rh7 would win.} (28. Nxb5 $2 {is the wrong capture.} Qxd2 29. Bxd2 Nxe4 $19) ({And not} 28. cxb5 Nxb3 29. axb3 Qxc3 $17 (29... Rxc3 30. Bc4 $11)) 28... Be8 {[%emt 0:03:09]} 29. Rh7 {[%emt 0:02:59]} ({Less strong is} 29. Nxb5 Qxe1 30. Rxe1 Bxb5 $16) 29... bxc4 {[%emt 0:00:04] [#]} 30. Qh4 $1 {[%emt 0:01:19] Weighted Error Value: White=0.18 (very precise) /Black=0.53.  Loses game:     	---       	Black=1      Mistake:       	White=1     	Black=4      Inaccurate:     	White=1     	Black=1      OK:         	White=4     	Black=4      Best:        	White=1     	Black=1      Strong:       	---       	Black=1} 1-0

[Event "45th FIDE Olympiad 2024"]
[Site "Budapest"]
[Date "2024.09.19"]
[Round "8.31"]
[White "Zaw, Ye Htut"]
[Black "Corbin, Philip"]
[Result "1-0"]
[WhiteElo "1815"]
[BlackElo "1916"]
[PlyCount "51"]
[EventDate "2024.09.05"]
[EventType "team-tourn"]
[EventCountry "HUN"]
[WhiteTeam "Myanmar"]
[BlackTeam "Barbados"]
[WhiteTeamCountry "MYA"]
[BlackTeamCountry "BAR"]
[TimeControl "40/5400+30:1800+30"]

1. e4 c5 2. Nf3 e6 3. d4 cxd4 4. Nxd4 Nf6 5. Nc3 d6 6. Bg5 Be7 7. Qd2 a6 8. O-O-O b5 9. a3 Bb7 10. Nb3 Nbd7 11. Qe1 Qc7 12. f4 Rc8 13. Rd2 O-O 14. Bd3 Rfe8 15. Rf1 e5 16. f5 d5 17. exd5 Bxa3 18. Ne4 Bxd5 19. bxa3 Bxb3 20. Qg3 Nxe4 21. Bxe4 Nc5 22. Bf6 g6 23. fxg6 fxg6 24. Bxg6 e4 25. Bf7+ Kxf7 26. Bd8+ 1-0

[Event "45th FIDE Olympiad 2024"]
[Site "Budapest"]
[Date "2024.09.19"]
[Round "8.32"]
[White "Stevic, Hrvoje"]
[Black "Svane, Frederik"]
[Result "0-1"]
[ECO "B22"]
[WhiteElo "2531"]
[BlackElo "2640"]
[Annotator "TA"]
[PlyCount "50"]
[EventDate "2024.09.05"]
[EventType "team-tourn"]
[EventCountry "HUN"]
[SourceTitle "playchess.com"]
[Source "ChessBase"]
[SourceQuality "1"]
[WhiteTeam "Croatia"]
[BlackTeam "Germany"]
[WhiteTeamCountry "CRO"]
[BlackTeamCountry "GER"]
[TimeControl "40/5400+30:1800+30"]

{[%evp 9,50,-9,-7,5,1,9,23,0,-7,0,0,0,0,-12,0,0,26,0,-10,-20,-31,-16,-31,-47,-41,-29,-43,-104,-106,-111,-106,-140,-164,-162,-162,-166,-167,-259,-267,-511,-497,-1413,-1351]} 1. e4 {[%emt 0:00:03][%cal Be2e4,Be4e5][%mdl 32]} c5 {[%emt 0:00:11]} 2. c3 {[%emt 0:00:28]} Nf6 {[%emt 0:00:07]} 3. e5 {[%emt 0:00:10]} Nd5 {[%emt 0:00:05]} 4. Nf3 {[%emt 0:00:27]} d6 {[%emt 0:00:09]} 5. Bb5+ {[%emt 0:01:16]} Bd7 {[%emt 0:00:16]} 6. Bc4 {[%emt 0:00:23]} e6 {[%emt 0:00:18]} 7. d4 {[%emt 0:00:20]} dxe5 {[%emt 0:00:58]} 8. Nxe5 {[%emt 0:02:02] White has an edge.} Nc6 {[%emt 0:00:07]} 9. Nxd7 {[%emt 0:00:58]} Qxd7 {[%emt 0:00:05]} 10. dxc5 {[%emt 0:00:09]} Bxc5 {[%emt 0:00:06]} 11. O-O {[%emt 0:01:04]} O-O-O {[%emt 0:00:41]} 12. Nd2 {[%emt 0:21:01][%cal Bb1d2,Bd2e4,Be4g5][%mdl 32]} Qc7 {[%emt 0:14:21]} 13. Qc2 {[%emt 0:20:33]} Ne5 {[%emt 0:04:49]} 14. Be2 {[%emt 0:02:54] Against Ng4} h5 {[%emt 0:12:20][%cal Od5b4]} 15. Ne4 {[%emt 0:25:33]} Bb6 {[%emt 0:08:32] Threatens to win with ...Ng4.} 16. c4 {[%emt 0:02:52]} f5 {[%emt 0:33:33]} (16... Nb4 {simplifies} 17. Qc3 Nbd3 18. c5 Nxc5 19. Nxc5 Qxc5 20. Qxc5+ Bxc5 21. Bg5 Rd5) 17. Ng5 {[%emt 0:00:28]} Ng4 $1 {[%emt 0:00:05][%csl Gg4][%cal Rc7h2] Excellent horsemanship.} 18. g3 {[%emt 0:10:02] [#]} (18. Bxg4 $1 $15 hxg4 19. g3) 18... Nde3 $1 $40 {[%emt 0:00:29][%mdl 640] Black wants a kill. Black has more active pieces. The white rooks are passive.} 19. fxe3 {[%emt 0:01:31]} Nxe3 {[%emt 0:00:05]} 20. Bxe3 {[%emt 0:04:12]} Bxe3+ {[%emt 0:00:05]} 21. Kh1 {[%emt 0:00:13]} Bxg5 {[%emt 0:02:59] White is weak on the dark squares} 22. Rad1 {[%emt 0:00:05] Repels Rd2} Rxd1 {[%emt 0:00:32]} 23. Qxd1 {[%emt 0:01:39]} (23. Bxd1 {was necessary.} h4 24. g4) 23... h4 $19 {[%emt 0:00:39]} 24. g4 {[%emt 0:00:03] [#]} (24. Kg2 {is the only way for White.}) 24... Rd8 {[%emt 0:00:21]} 25. Qa4 {[%emt 0:00:04]} (25. Qb3 $142 Rd2 26. Qf3) 25... Qe5 {[%emt 0:02:17][%csl LRb2,LRe2] Weighted Error Value: White=0.50/Black=0.04 (flawless) .  Mistake:       	White=4     	---        Inaccurate:     	White=3     	Black=1      OK:         	White=7     	Black=6      Best:        	White=1     	Black=3      Strong:       	---       	Black=1      Brilliant:      	---       	Black=1} 0-1

[Event "45th FIDE Olympiad 2024"]
[Site "Budapest"]
[Date "2024.09.19"]
[Round "8.32"]
[White "Depradine, Lawrence"]
[Black "Linn, Phone Myat"]
[Result "1/2-1/2"]
[WhiteElo "1782"]
[BlackElo "1763"]
[PlyCount "110"]
[EventDate "2024.09.05"]
[EventType "team-tourn"]
[EventCountry "HUN"]
[WhiteTeam "Barbados"]
[BlackTeam "Myanmar"]
[WhiteTeamCountry "BAR"]
[BlackTeamCountry "MYA"]
[TimeControl "40/5400+30:1800+30"]

1. c4 Nf6 2. Nc3 e6 3. Nf3 b6 4. e4 d6 5. d3 Be7 6. g3 O-O 7. Bg2 Bb7 8. O-O Nbd7 9. b3 c5 10. Re1 Re8 11. Bb2 Ne5 12. Qc2 a6 13. Nd2 Nc6 14. Nf3 Nd7 15. Rad1 Nde5 16. Nxe5 dxe5 17. Ne2 Qc7 18. h4 Rad8 19. h5 h6 20. Bc3 Rd7 21. Qb2 Red8 22. Nc1 Nd4 23. Ne2 Nc6 24. Nc1 Bg5 25. Bf1 f6 26. a3 b5 27. Qb1 Na5 28. Na2 bxc4 29. dxc4 Rxd1 30. Rxd1 Rxd1 31. Qxd1 Bxe4 32. Qe1 Bb7 33. Kh2 Qc6 34. Bh3 Nxb3 35. f4 exf4 36. Bxe6+ Kf8 37. Bd5 Qd7 38. Bxb7 Qxb7 39. Qd1 fxg3+ 40. Kxg3 Qc7+ 41. Kg2 Qc6+ 42. Kg3 Nd4 43. Bxd4 Qd6+ 44. Kg2 cxd4 45. Qf3 Qe5 46. Nb4 f5 47. Nc6 Qc5 48. Nb4 Qe5 49. Nc6 Qc5 50. Nb8 Qxc4 51. Qxf5+ Kg8 52. Nd7 Qe2+ 53. Kg3 Qxh5 54. Qf8+ Kh7 55. Qf5+ Kg8 1/2-1/2

[Event "45th FIDE Olympiad 2024"]
[Site "Budapest"]
[Date "2024.09.19"]
[Round "8.33"]
[White "Howell, David W L"]
[Black "Stremavicius, Titas"]
[Result "1/2-1/2"]
[ECO "B45"]
[WhiteElo "2677"]
[BlackElo "2527"]
[Annotator "TA"]
[PlyCount "151"]
[EventDate "2024.09.05"]
[EventType "team-tourn"]
[EventCountry "HUN"]
[SourceTitle "playchess.com"]
[Source "ChessBase"]
[SourceQuality "1"]
[WhiteTeam "England"]
[BlackTeam "Lithuania"]
[WhiteTeamCountry "ENG"]
[BlackTeamCountry "LTU"]
[TimeControl "40/5400+30:1800+30"]

{[%evp 100,151,21,69,237,10,12,12,21,16,80,8,1336,646,1336,1921,1595,0,0,0,434,0,0,0,0,0,0,0,0,0,0,0,0,0,0,0,0,0,0,0,0,0,0,0,0,0,0,0,0,0,0,0,0,0]} 1. e4 {[%emt 0:00:18]} c5 {[%emt 0:00:09]} 2. Nf3 {[%emt 0:00:38]} Nc6 {[%emt 0:00:11]} 3. d4 {[%emt 0:01:31]} cxd4 {[%emt 0:00:08]} 4. Nxd4 {[%emt 0:00:07]} Nf6 {[%emt 0:00:08]} 5. Nc3 {[%emt 0:00:07]} e6 {[%emt 0:00:45]} 6. Ndb5 {[%emt 0:01:29]} Bc5 {[%emt 0:00:31]} 7. Nd6+ {[%emt 0:00:45] B45: Sicilian Four Knights.} Ke7 {[%emt 0:00:15]} 8. Bf4 {[%emt 0:00:10]} e5 {[%emt 0:00:06]} 9. Nf5+ {[%emt 0:00:44]} Kf8 {[%emt 0:00:04]} 10. Bg5 {[%emt 0:00:12]} d6 {[%emt 0:11:49]} 11. Bc4 {[%emt 0:01:30]} h6 {[%emt 0:00:20]} 12. Bxf6 {[%emt 0:02:59]} Qxf6 {[%emt 0:00:05]} 13. Nd5 {[%emt 0:01:37]} Qd8 {[%emt 0:09:59]} 14. Qd3 {[%emt 0:01:06]} g6 $146 {[%emt 0:03:51]} ({Predecessor:} 14... a6 15. h4 Be6 16. O-O-O b5 17. Bb3 a5 18. Qxb5 a4 19. Bxa4 Bd7 20. Bb3 Nd4 {1-0 Mammadzada,G (2449)-Maltsevskaya,A (2374) Swiss Queens Wed #2 blitz 2024 (9)}) 15. Nfe3 {[%emt 0:00:44]} Kg7 {[%emt 0:00:10]} 16. a3 {[%emt 0:08:05]} a5 {[%emt 0:00:50]} 17. O-O-O {[%emt 0:03:31]} Rb8 {[%emt 0:10:22]} 18. g3 {[%emt 0:06:48]} Nd4 {[%emt 0:09:30]} 19. c3 {[%emt 0:04:16]} b5 {[%emt 0:02:52]} 20. Ba2 {[%emt 0:00:19]} Nc6 {[%emt 0:08:29]} 21. b4 {[%emt 0:04:58]} Ba7 {[%emt 0:00:04]} 22. h4 {[%emt 0:06:15]} h5 {[%emt 0:00:41]} 23. Kb2 {[%emt 0:00:30]} Rf8 {[%emt 0:02:58]} 24. f4 {[%emt 0:07:59]} exf4 {[%emt 0:01:14]} 25. gxf4 {[%emt 0:00:26]} Ne7 {[%emt 0:00:12]} 26. Nxe7 {[%emt 0:12:33]} Qxe7 {[%emt 0:00:03]} 27. Nd5 {[%emt 0:00:06]} Qe8 {[%emt 0:16:12]} 28. Nc7 {[%emt 0:18:58]} Qc6 {[%emt 0:01:12]} 29. Qxd6 {[%emt 0:00:06]} Qxd6 {[%emt 0:00:11]} 30. Rxd6 {[%emt 0:00:05]} Rb7 {[%emt 0:02:26]} 31. Nd5 {[%emt 0:05:35]} Bb8 {[%emt 0:02:37]} 32. Rc6 {[%emt 0:02:38]} Bd7 {[%emt 0:00:55]} 33. Ra6 {[%emt 0:00:21]} axb4 {[%emt 0:00:08]} 34. axb4 {[%emt 0:00:25]} Bg4 {[%emt 0:03:55]} 35. Rh2 {[%emt 0:07:40]} Rd8 {[%emt 0:02:29]} 36. e5 {[%emt 0:01:51]} Ba7 {[%emt 0:03:38]} 37. Rd6 {[%emt 0:01:00]} Rxd6 {[%emt 0:04:36]} 38. exd6 {[%emt 0:00:01]} Bb8 {[%emt 0:00:23]} 39. Nc7 {[%emt 0:00:37]} Bxc7 {[%emt 0:00:08]} 40. Bd5 {[%emt 0:00:59]} Ra7 {[%emt 0:00:49]} 41. dxc7 {[%emt 0:00:34]} Rxc7 {[%emt 0:00:03]} 42. c4 {[%emt 0:03:37]} bxc4 {[%emt 0:10:37]} 43. Kc3 {[%emt 0:01:16]} Bd7 {[%emt 0:00:23]} 44. Ra2 {[%emt 0:05:20]} Kf6 {[%emt 0:02:58]} 45. Ra5 {[%emt 0:04:31]} Ke7 {[%emt 0:07:22]} 46. Bxc4 {[%emt 0:10:48]} Be6 {[%emt 0:00:12]} 47. Rc5 {[%emt 0:00:05]} Ra7 {[%emt 0:00:24]} 48. Ra5 {[%emt 0:00:36]} Rc7 {[%emt 0:00:03]} 49. Rc5 {[%emt 0:00:04]} Ra7 {[%emt 0:00:06]} 50. b5 {[%emt 0:02:02]} Bxc4 {[%emt 0:08:10]} 51. Rxc4 {[%emt 0:00:39]} Ke6 $1 {[%emt 0:01:11]} 52. Rc5 $2 {[%emt 0:01:55]} (52. Kb4 $18) 52... Ra1 {[%emt 0:01:49]} 53. Kb4 {[%emt 0:01:49]} Kd6 $1 {[%emt 0:04:55]} 54. Rc6+ {[%emt 0:03:07]} Kd5 {[%emt 0:00:02]} 55. Rf6 {[%emt 0:00:09]} (55. Rc3 $16) 55... Rh1 $2 {[%emt 0:03:39][%mdl 8192]} (55... Rb1+ $11 56. Ka5 Kc5 57. Rc6+ (57. Rxf7 $2 Ra1#) 57... Kd5) 56. b6 $18 {[%emt 0:01:24]} (56. Rxf7 Ke6 57. Rg7 Kf5 $11) 56... Rxh4 {[%emt 0:00:02]} 57. b7 $1 {[%emt 0:00:26]} (57. Rxf7 Rh1 $11) 57... Rh2 {[%emt 0:00:49]} 58. Kb3 {[%emt 0:00:36]} (58. b8=R $2 Rb2+ 59. Kc3 Rxb8 $19) (58. Rd6+ $142 $1 Kxd6 59. b8=Q+ (59. b8=R Rb2+ 60. Kc3 Rxb8 61. Kd3 h4 62. Ke3 h3 63. Kf2 Rb2+ 64. Kg1 Ke6 65. f5+ Kxf5 66. Kh1 Kf4 67. Kg1 Kg3 68. Kf1 h2 69. Ke1 h1=Q#) 59... Ke7 60. Qc7+ Ke8 61. Qc5) 58... Rh3+ $1 $18 {[%emt 0:00:03]} 59. Kb4 {[%emt 0:00:04]} Rh2 $1 {[%emt 0:00:05]} 60. Kc3 $2 {[%emt 0:00:56]} (60. b8=R $2 Rb2+ 61. Kc3 Rxb8 $19) ({White has to play} 60. Rd6+ $1 $18 Kxd6 61. b8=Q+ (61. b8=R Rb2+ 62. Kc4 Rxb8 63. Kd3 h4 64. Ke2 h3 65. Kf1 h2 66. Kg2 Rh8 67. Kf3 h1=Q+ 68. Ke3 Rh3+ 69. Kf2 Rf3+ 70. Ke2 Qg2+ 71. Ke1 Rf1#) 61... Ke7 62. Qc7+ Ke8 63. Qc8+ Ke7 64. Qc5+ Ke8 65. Kc3) 60... Rh3+ $11 {[%emt 0:00:11]} 61. Kc2 {[%emt 0:00:12]} (61. Kb4 Rh2 $18) 61... Rh2+ {[%emt 0:00:05]} 62. Kb1 {[%emt 0:00:48]} Rh1+ {[%emt 0:00:02]} 63. Ka2 {[%emt 0:00:05]} Rh2+ {[%emt 0:00:04]} 64. Ka3 {[%emt 0:00:06]} Rh3+ {[%emt 0:00:05]} 65. Ka2 {[%emt 0:01:14]} Rh2+ {[%emt 0:00:02]} 66. Ka1 {[%emt 0:00:15]} Rh1+ {[%emt 0:00:03]} 67. Kb2 {[%emt 0:00:03]} Rh2+ {[%emt 0:00:12]} 68. Ka3 {[%emt 0:01:10]} Rh3+ {[%emt 0:00:04]} 69. Ka4 {[%emt 0:00:34]} Rh1 {[%emt 0:00:05]} 70. Rd6+ {[%emt 0:00:32]} (70. b8=R $2 Ra1+ 71. Kb4 (71. Kb5 $2 Rb1+ 72. Ka4 Rxb8 $19) 71... Rb1+ 72. Kc3 Rxb8 73. Rxf7 Ke4 $19) (70. Rb6 $5 Ra1+ $8 71. Kb4 Rb1+ 72. Ka5 Ra1+ 73. Kb5 Rb1+ 74. Ka6 Ra1+ 75. Kb5 Rb1+ 76. Ka5 Ra1+ 77. Kb5 $11) 70... Kc5 $1 {[%emt 0:00:14]} 71. Rd3 {[%emt 0:00:20]} (71. b8=R $2 {too greedy.} Kxd6 72. Rd8+ Ke7 $19) (71. b8=Q $2 Ra1+ 72. Kb3 Rb1+ 73. Kc3 Rxb8 $19) (71. Rd1 {gets mated.} Rxd1 72. b8=Q Ra1+ 73. Kb3 Rb1+ 74. Kc2 Rxb8 75. Kd3 Re8 76. Kc3 h4 77. f5 gxf5 78. Kd2 h3 79. Kd1 h2 80. Kc2 h1=Q (80... h1=R {leads to mate.} 81. Kc3 Re2 82. Kd3 Rhh2 83. Kc3 Rh3#) 81. Kc3 Qf3+ 82. Kc2 Re2+ 83. Kd1 Qf1#) 71... Ra1+ {[%emt 0:00:17]} 72. Ra3 {[%emt 0:00:05]} Rb1 {[%emt 0:00:03]} 73. Rb3 $1 {[%emt 0:00:34]} Ra1+ {[%emt 0:00:02]} 74. Ra3 {[%emt 0:00:05]} Rb1 {[%emt 0:00:03]} 75. Rb3 $1 {[%emt 0:00:56]} Ra1+ {[%emt 0:00:06]} 76. Ra3 {[%emt 0:00:04]} 1/2-1/2